bitfinex/quotes_ETHUSD_20250525
["timestamp","ask_amount","ask_price","bid_price","bid_amount"]
[1748181934715,0.05,2509.9,2509.8,12.922]
[1748181935217,0.05,2509.9,2509.8,14.2142]
[1748181936019,0.05,2509.9,2509.8,14.533]
[1748181939226,0.05,2509.9,2509.8,22.533]
[1748181942427,0.05,2509.9,2509.8,26.508]
[1748181943528,0.05,2509.9,2509.8,18.197]
[1748181943826,0.05,2509.9,2509.8,26.507]
[1748181946798,0.05,2509.9,2509.8,18.197]
[1748181947000,0.05,2509.9,2509.8,26.507]
[1748181948641,0.05,2509.9,2509.8,18.197]
[1748181948830,0.05,2509.9,2509.8,26.507]
[1748181949622,0.05,2509.9,2509.8,26.1882]
[1748181952146,0.05,2509.9,2509.8,26.507]
[1748181954346,0.05,2509.9,2509.8,22.532]
[1748181954551,0.05,2509.9,2509.8,26.507]
[1748181956861,0.05,2509.9,2509.8,18.197]
[1748181957164,0.05,2509.9,2509.8,26.507]
[1748181960257,0.05,2509.9,2509.8,18.1882]
[1748181960665,0.05,2509.9,2509.8,9.8782]
[1748181960868,0.828,2509.9,2509.8,12.921]
[1748181961539,0.05,2509.9,2509.8,12.921]
[1748181966727,0.05,2509.9,2509.8,16.896]
[1748181967256,0.05,2509.9,2509.8,12.919]
[1748181969263,0.05,2509.9,2509.8,8.586]
[1748181969435,0.8303,2509.9,2509.8,12.919]
[1748181970339,0.05,2509.9,2509.8,12.919]
[1748181974977,0.05,2509.9,2509.8,14.2109]
[1748181975279,0.05,2509.9,2509.8,14.5297]
[1748181975456,0.05,2509.9,2509.8,18.5047]
[1748181976782,0.05,2509.9,2509.8,18.1869]
[1748181978989,0.05,2509.9,2509.8,18.5057]
[1748181980091,0.05,2509.9,2509.8,26.5057]
[1748181982405,0.05,2509.9,2509.8,26.8856071]
[1748181996947,0.05,2509.9,2509.8,33.0156071]
[1748182000024,0.05,2509.9,2509.8,33.0106071]
[1748182000224,0.05,2509.9,2509.8,33.5606071]
[1748182000714,0.05,2509.9,2509.8,34.00165598]
[1748182003157,0.05,2509.9,2509.8,34.63334703]
[1748182005250,0.05,2509.9,2509.8,34.00165598]
[1748182005971,0.05,2509.9,2509.8,30.02765598]
[1748182006252,0.05,2509.9,2509.8,34.00165598]
[1748182006943,0.05,2510.9,2510.0,0.55]
[1748182007252,0.05,2510.9,2510.3,0.55]
[1748182008216,0.05,2510.9,2510.4,0.3799071]
[1748182008435,0.05,2510.9,2510.5,4.329]
[1748182008641,0.05,2510.9,2510.6,3.974]
[1748182008956,0.05,2510.9,2510.6,10.3728]
[1748182009128,0.05,2510.9,2510.7,1.16663445]
[1748182009755,0.05,2510.9,2510.7,9.16663445]
[1748182013550,0.05,2510.9,2510.7,1.16663445]
[1748182013756,0.8144,2510.9,2510.8,8.302]
[1748182014333,0.05,2510.9,2510.8,8.6208]
[1748182014645,0.05,2510.9,2510.8,9.88874345]
[1748182015756,0.05,2510.9,2510.8,1.58674345]
[1748182015962,0.05,2510.9,2510.8,8.302]
[1748182016158,0.05,2510.9,2510.6,0.3188]
[1748182016364,0.05,2510.9,2510.8,8.301]
[1748182017869,0.05,2510.9,2510.8,16.301]
[1748182021279,0.05,2510.9,2510.8,8.0]
[1748182021485,0.05,2510.9,2510.8,16.301]
[1748182021670,0.05,2510.9,2510.8,17.96298]
[1748182022471,0.05,2510.9,2510.8,17.95798]
[1748182023883,0.05,2510.9,2510.8,18.33696079]
[1748182024795,0.8425,2510.9,2510.8,10.04096079]
[1748182024967,0.8425,2510.9,2510.8,14.36396079]
[1748182025169,0.8425,2510.9,2510.8,18.33696079]
[1748182026454,0.8425,2510.9,2510.8,17.95798]
[1748182027151,0.8425,2510.9,2510.8,26.53998]
[1748182027491,0.05,2510.9,2510.8,26.53998]
[1748182028990,0.05,2510.9,2510.8,18.24398]
[1748182029149,0.05,2510.9,2510.8,26.53998]
[1748182029896,0.05,2510.9,2510.8,26.91977807]
[1748182031592,0.05,2510.9,2510.8,22.94677807]
[1748182031760,0.8825,2510.9,2510.8,26.91977807]
[1748182033288,0.8825,2510.9,2510.8,22.94677807]
[1748182033487,0.8825,2510.9,2510.8,26.91977807]
[1748182033993,0.8825,2510.9,2510.8,14.94677807]
[1748182034297,0.8825,2510.9,2510.8,18.91977807]
[1748182035288,0.8825,2510.9,2510.8,18.53998]
[1748182035495,0.8825,2510.9,2510.8,14.56698]
[1748182035695,0.8825,2510.9,2510.8,18.53998]
[1748182036907,0.05,2510.9,2510.8,26.53998]
[1748182037473,0.05,2510.9,2510.8,18.24398]
[1748182037673,0.05,2510.9,2510.8,26.53998]
[1748182043425,0.05,2510.9,2510.8,18.24398]
[1748182043733,0.8127,2510.9,2510.8,22.56698]
[1748182046441,0.8127,2510.9,2510.8,14.56698]
[1748182048248,0.8127,2510.9,2510.8,12.905]
[1748182049576,0.8127,2510.9,2510.8,8.582]
[1748182049719,0.8127,2510.9,2510.8,12.906]
[1748182051153,0.05,2510.9,2510.8,12.906]
[1748182055859,0.05,2510.9,2510.8,13.2248]
[1748182056067,0.05,2510.9,2510.8,14.54728]
[1748182056283,0.05,2510.9,2510.8,14.9272324]
[1748182056978,0.05,2510.9,2510.8,22.9272324]
[1748182058171,0.05,2510.9,2510.8,18.2844324]
[1748182058379,0.05,2510.9,2510.8,21.2789524]
[1748182058585,0.05,2510.9,2510.8,13.2789524]
[1748182059093,0.8056,2510.9,2510.8,13.2789524]
[1748182059759,0.8056,2510.9,2510.8,12.899]
[1748182071577,0.05,2510.9,2510.8,12.899]
[1748182071781,0.05,2510.9,2510.8,14.1889]
[1748182079438,0.05,2510.9,2510.8,14.5077]
[1748182080429,0.05,2510.9,2510.8,14.1889]
[1748182081237,0.05,2510.9,2510.8,22.1889]
[1748182084612,0.05,2510.9,2510.8,26.1619]
[1748182086300,0.05,2510.9,2510.8,18.1619]
[1748182086906,0.05,2510.9,2510.8,18.4807]
[1748182087338,0.05,2510.9,2510.8,14.5077]
[1748182087539,0.05,2510.9,2510.8,18.86061501]
[1748182088343,0.05,2510.9,2510.8,26.86061501]
[1748182090267,0.05,2510.9,2510.8,22.88761501]
[1748182090562,0.05,2510.9,2510.8,26.53581501]
[1748182090714,0.05,2510.9,2510.8,18.25181501]
[1748182090914,0.05,2510.9,2510.8,26.53581501]
[1748182091984,0.05,2510.9,2510.8,26.1559]
[1748182092336,0.05,2510.9,2510.8,17.8719]
[1748182092537,0.05,2510.9,2510.8,26.1559]
[1748182092896,0.05,2510.9,2510.8,17.8719]
[1748182093056,0.05,2510.9,2510.8,26.1559]
[1748182093773,0.05,2510.9,2510.8,18.1559]
[1748182093975,0.05,2510.9,2510.8,16.866]
[1748182094739,0.8264,2510.9,2510.8,8.582]
[1748182094938,0.8264,2510.9,2510.8,12.893]
[1748182104592,0.05,2510.9,2510.8,12.893]
[1748182104972,0.05,2510.9,2510.8,13.2118]
[1748182105171,0.05,2510.9,2510.8,14.93028]
[1748182105797,0.05,2510.9,2510.8,14.61148]
[1748182105972,0.8058,2510.9,2510.8,12.893]
[1748182106293,0.8058,2510.9,2510.8,8.582]
[1748182106494,0.8058,2510.9,2510.8,12.893]
[1748182107583,0.8058,2510.9,2510.8,8.582]
[1748182107899,0.8058,2510.9,2510.8,12.893]
[1748182108101,1.68638,2510.9,2510.8,12.893]
[1748182108300,2.23638,2510.9,2510.8,12.893]
[1748182108859,0.55,2510.8,2510.7,4.311]
[1748182109062,9.3058,2510.8,2510.7,4.311]
[1748182111866,8.7558,2510.8,2510.7,4.311]
[1748182112067,1.724438,2510.8,2510.7,4.311]
[1748182112301,0.7558,2510.8,2510.7,4.311]
[1748182134933,0.05,2510.9,2510.7,4.311]
[1748182139240,0.05,2510.9,2510.7,8.6038]
[1748182139452,0.05,2510.9,2510.8,0.00981988]
[1748182139622,0.05,2510.9,2510.8,0.3188]
[1748182139819,0.05,2510.9,2510.8,1.17918]
[1748182147740,0.05,2510.9,2510.8,9.17918]
[1748182152187,0.05,2510.9,2510.8,17.45118]
[1748182157626,0.05,2510.9,2510.8,13.47818]
[1748182157831,0.05,2510.9,2510.8,17.45118]
[1748182158029,0.05,2510.9,2510.8,9.17918]
[1748182158216,0.05,2510.9,2510.8,17.45118]
[1748182161414,0.05,2510.9,2510.8,17.82940983]
[1748182161818,0.05,2510.9,2510.8,18.37940983]
[1748182162025,0.05,2510.9,2510.8,24.45940983]
[1748182167841,0.05,2511.9,2510.9,0.55]
[1748182168047,0.05,2511.9,2511.1,0.55]
[1748182168369,0.05,2511.9,2511.3,0.55]
[1748182168810,0.05,2511.9,2511.5,0.55]
[1748182169010,0.05,2511.9,2511.8,0.55]
[1748182169249,0.05,2511.9,2511.8,0.8188]
[1748182169459,0.05,2511.9,2511.8,1.67918]
[1748182170442,0.05,2511.9,2511.8,2.05740983]
[1748182171879,0.05,2511.9,2511.8,9.77740983]
[1748182172186,0.05,2511.9,2511.8,8.91702983]
[1748182172864,0.05,2511.9,2511.8,0.2688]
[1748182173176,0.05,2511.9,2511.8,8.5388]
[1748182174670,0.05,2511.9,2511.8,4.5668]
[1748182174852,0.05,2511.9,2511.8,8.99548]
[1748182175751,0.05,2511.9,2511.8,16.99548]
[1748182176478,0.05,2511.9,2511.8,16.71868]
[1748182180585,0.05,2511.9,2511.8,25.29668]
[1748182182776,0.05,2511.9,2511.8,17.03468]
[1748182182943,0.05,2511.9,2511.8,25.29668]
[1748182183977,0.05,2511.9,2511.8,25.84668]
[1748182184562,0.05,2511.9,2511.8,25.29668]
[1748182186492,0.05,2511.9,2511.8,26.11548]
[1748182188103,0.05,2511.9,2511.8,26.49317614]
[1748182188900,0.05,2511.9,2511.8,17.68117614]
[1748182189136,0.05,2511.9,2511.8,17.41237614]
[1748182189307,0.05,2511.9,2511.8,25.67437614]
[1748182190468,0.05,2511.9,2511.8,21.70337614]
[1748182190669,0.05,2511.9,2511.8,25.67437614]
[1748182196243,0.05,2511.9,2511.8,21.70337614]
[1748182196409,0.05,2511.9,2511.8,25.67437614]
[1748182198744,0.05,2511.9,2511.8,17.67437614]
[1748182201145,0.05,2511.9,2511.8,9.41237614]
[1748182201450,0.05,2511.9,2511.8,13.72044729]
[1748182201451,0.804,2511.9,2511.8,13.72044729]
[1748182202770,0.05,2511.9,2511.8,12.869]
[1748182204434,0.05,2511.9,2511.8,13.419]
[1748182205535,0.05,2511.9,2511.8,13.79842158]
[1748182205849,0.05,2511.9,2511.8,15.90053918]
[1748182207629,0.05,2511.9,2511.8,23.90053918]
[1748182208564,0.05,2511.9,2511.8,24.16933918]
[1748182209181,0.05,2511.9,2511.8,30.24933918]
[1748182215208,0.05,2511.9,2511.8,33.94553918]
[1748182219489,0.05,2511.9,2511.8,34.21433918]
[1748182219693,0.05,2511.9,2511.8,34.65538806]
[1748182222314,0.05,2511.9,2511.8,34.21433918]
[1748182222782,0.05,2511.9,2511.8,34.84600738]
[1748182224221,0.05,2511.9,2511.8,30.87500738]
[1748182224419,0.05,2511.9,2511.8,34.84500738]
[1748182227129,0.05,2511.9,2511.8,34.21333918]
[1748182229549,0.05,2511.9,2511.8,34.84500738]
[1748182230853,0.05,2511.9,2511.8,34.84500738]
[1748182234859,0.05,2511.9,2511.8,34.21333918]
[1748182236561,0.04665569,2511.9,2511.8,34.21333918]
[1748182238935,0.8114,2512.6,2511.9,0.55]
[1748182239137,0.8114,2512.6,2512.1,0.55]
[1748182239963,0.8114,2512.6,2512.1,14.63]
[1748182240476,0.8114,2512.6,2512.3,0.55]
[1748182241362,0.8114,2512.6,2512.4,0.37942158]
[1748182241662,0.8114,2512.6,2512.5,12.279]
[1748182241876,0.8114,2512.6,2512.5,13.59984216]
[1748182242080,0.05,2512.9,2512.5,13.59984216]
[1748182242081,0.8679,2512.9,2512.5,13.59984216]
[1748182242285,0.8679,2512.9,2512.7,8.0]
[1748182246084,0.8679,2512.9,2512.8,8.576]
[1748182246678,0.8679,2512.9,2512.8,12.855]
[1748182247256,0.8679,2512.9,2512.8,8.576]
[1748182247465,0.8679,2512.9,2512.8,4.279]
[1748182249696,0.8679,2512.9,2512.1,8.0]
[1748182250494,0.8679,2512.9,2511.5,9.0246236]
[1748182250703,0.8679,2512.9,2511.7,8.0]
[1748182250914,0.8679,2512.9,2511.6,1.51046236]
[1748182250915,0.7924,2512.7,2511.6,1.51046236]
[1748182251071,0.7924,2512.7,2511.5,0.4746236]
[1748182251264,0.7924,2512.7,2511.6,3.97]
[1748182251464,0.7924,2512.7,2511.7,0.37957286]
[1748182253222,0.7924,2512.7,2511.6,3.97]
[1748182254331,0.7924,2512.7,2511.7,8.0]
[1748182254485,0.7924,2512.7,2511.7,9.197]
[1748182257221,0.7924,2512.7,2511.9,8.0]
[1748182257517,0.7924,2512.7,2512.0,12.856]
[1748182261117,0.04975509,2512.6,2512.0,12.856]
[1748182261439,0.7926,2512.5,2512.1,4.279]
[1748182261933,0.09975763,2512.9,2511.6,3.971]
[1748182261934,0.7926,2512.3,2512.2,4.279]
[1748182263243,0.7926,2512.3,2511.2,3.971]
[1748182263407,0.04976535,2512.2,2511.2,3.971]
[1748182263615,0.7926,2512.1,2511.3,8.0]
[1748182263923,0.7926,2512.1,2510.5,0.2688]
[1748182264126,0.7926,2512.1,2510.7,8.0]
[1748182266104,0.04977199,2512.0,2510.7,8.0]
[1748182266298,0.7909,2511.9,2510.7,8.0]
[1748182266500,0.7909,2511.9,2510.8,1.1971]
[1748182266719,0.7909,2511.9,2510.9,3.972]
[1748182267325,0.7909,2511.9,2510.8,3.972]
[1748182267510,1.19700648,2511.9,2510.9,12.853]
[1748182267725,0.7909,2511.8,2510.9,12.853]
[1748182270926,0.7909,2511.8,2511.0,8.0]
[1748182271123,0.7909,2511.8,2511.0,10.4825]
[1748182273201,0.7886,2511.6,2510.9,12.853]
[1748182273552,0.7886,2511.4,2510.9,12.853]
[1748182273720,0.7886,2511.2,2510.9,12.853]
[1748182278601,0.7886,2511.2,2510.9,8.579]
[1748182278802,0.7886,2511.2,2511.0,4.275]
[1748182294562,0.04978185,2511.1,2511.0,4.275]
[1748182294859,0.7882,2511.0,2510.6,8.583]
[1748182295032,0.7882,2511.0,2510.7,4.276]
[1748182298837,0.7865,2511.3,2510.7,5.5619]
[1748182299266,0.7865,2511.3,2510.8,3.973]
[1748182304077,0.7865,2511.3,2510.9,4.27]
[1748182308789,0.40343026,2511.4,2511.0,0.2688]
[1748182308979,8.7709,2511.6,2511.0,0.2688]
[1748182309180,1.90209,2511.5,2510.9,4.27]
[1748182310590,0.7709,2511.6,2510.9,4.27]
[1748182312890,1.17192839,2511.6,2510.9,4.27]
[1748182314799,1.17192839,2511.6,2511.0,8.583]
[1748182318201,0.8321,2511.5,2511.0,8.583]
[1748182318665,0.8321,2511.3,2511.0,8.583]
[1748182318866,0.04978052,2511.2,2511.1,4.27]
[1748182319199,0.8321,2511.4,2511.1,4.27]
[1748182320302,0.7749,2511.3,2511.1,4.27]
[1748182320491,1.90746836,2511.2,2511.1,4.27]
[1748182320693,2.68236836,2511.2,2511.1,4.27]
[1748182329091,0.7749,2511.2,2511.1,4.27]
[1748182329292,3.17570147,2511.6,2511.1,4.27]
[1748182329829,3.17570147,2511.6,2511.2,0.2688]
[1748182330408,3.17570147,2511.6,2511.1,4.27]
[1748182331229,1.17941002,2511.6,2511.1,4.27]
[1748182332348,1.17941002,2511.6,2511.1,5.12128]
[1748182334237,0.04977482,2511.5,2511.1,5.12128]
[1748182334612,1.17941002,2511.6,2511.1,5.12128]
[1748182340937,0.38851002,2511.6,2511.1,5.12128]
[1748182341121,0.7813,2511.9,2511.2,0.2688]
[1748182341324,0.7813,2511.9,2511.2,1.666108]
[1748182341531,1.17231704,2511.9,2511.2,1.666108]
[1748182342745,0.39101704,2511.9,2511.2,1.666108]
[1748182343040,0.7813,2512.1,2511.3,0.2688]
[1748182343536,0.7813,2512.1,2511.3,4.2418]
[1748182343742,0.7813,2512.1,2511.4,0.5639108]
[1748182344117,9.99629145,2512.2,2511.5,0.2688]
[1748182344939,1.99629145,2512.2,2511.5,0.2688]
[1748182345334,2.40284428,2512.2,2511.5,0.2688]
[1748182346739,0.40655283,2512.2,2511.5,0.2688]
[1748182347014,0.7813,2512.3,2511.5,0.74937108]
[1748182349949,1.18319603,2512.3,2511.5,0.74937108]
[1748182350854,1.18319603,2512.3,2511.5,0.2688]
[1748182354862,0.04976651,2512.2,2511.5,0.2688]
[1748182356368,0.04976651,2512.2,2511.6,4.263]
[1748182358375,9.18319603,2512.3,2511.6,4.263]
[1748182358581,9.18319603,2512.3,2511.7,0.2688]
[1748182358789,0.9183196,2512.2,2511.7,0.2688]
[1748182359086,1.99629145,2512.8,2511.8,0.27858852]
[1748182359245,9.99629145,2512.8,2511.8,0.2688]
[1748182360760,10.40208013,2512.8,2511.8,0.2688]
[1748182362559,0.04975628,2512.7,2511.8,0.2688]
[1748182362762,0.8273,2512.6,2511.8,0.2688]
[1748182363079,0.8273,2512.4,2511.9,4.256]
[1748182363278,0.0497642,2512.3,2511.9,4.256]
[1748182363573,9.3773,2512.7,2511.9,4.256]
[1748182363775,1.23293801,2512.6,2511.9,4.256]
[1748182363976,8.8273,2512.7,2512.0,0.2688]
[1748182364346,0.04975801,2512.6,2512.0,0.2688]
[1748182365365,2.40208013,2512.8,2512.0,0.2688]
[1748182365563,2.45183509,2512.8,2512.1,4.256]
[1748182365766,0.45554364,2512.8,2512.1,4.256]
[1748182367240,0.45554364,2512.8,2512.1,4.70848]
[1748182368781,0.45554364,2512.8,2512.2,0.2688]
[1748182376001,0.7883,2512.7,2512.2,0.2688]
[1748182376897,0.7883,2512.7,2512.3,4.255]
[1748182377905,0.7883,2512.7,2512.4,4.255]
[1748182378570,0.7883,2512.7,2512.0,8.58]
[1748182378775,0.8158,2512.5,2512.1,4.255]
[1748182378976,1.3658,2512.2,2512.1,4.255]
[1748182379190,1.4155665,2512.2,2512.1,4.255]
[1748182379537,19.6158,2512.2,2512.1,4.255]
[1748182379969,23.5878,2512.2,2512.1,4.255]
[1748182381212,23.0378,2512.2,2512.1,4.255]
[1748182381395,25.43023562,2512.2,2512.1,4.255]
[1748182382211,25.98023562,2512.2,2512.1,4.255]
[1748182388481,25.16443562,2512.2,2512.1,4.255]
[1748182389110,21.19243562,2512.2,2512.1,4.255]
[1748182391650,20.64243562,2512.2,2512.1,4.255]
[1748182400336,18.25,2512.2,2512.1,4.255]
[1748182401038,10.25,2512.2,2512.1,4.255]
[1748182401759,18.25,2512.2,2512.1,4.255]
[1748182406376,18.25,2512.2,2511.7,0.2688]
[1748182406577,8.0,2512.1,2511.8,4.25]
[1748182406882,10.25,2512.2,2511.8,4.25]
[1748182407095,10.25,2512.2,2511.8,4.70188]
[1748182407384,10.25,2512.2,2511.9,0.2688]
[1748182409041,0.04976513,2512.1,2511.8,4.25]
[1748182409242,10.25,2512.2,2511.8,4.25]
[1748182410266,10.25,2512.2,2511.7,0.2688]
[1748182410581,10.25,2512.2,2511.8,4.25]
[1748182411312,12.4722,2512.2,2511.8,4.25]
[1748182413701,12.4722,2512.2,2511.9,4.25]
[1748182414813,8.0,2512.1,2511.9,4.25]
[1748182415316,0.762,2512.0,2511.4,8.8498]
[1748182415517,8.0,2512.1,2511.5,4.25]
[1748182415681,10.04722,2512.1,2511.5,4.25]
[1748182418014,0.04976983,2512.0,2511.5,4.25]
[1748182419719,0.762,2511.9,2511.5,4.25]
[1748182430341,14.79982,2512.1,2511.5,4.25]
[1748182430546,2.504982,2512.0,2511.5,4.25]
[1748182430704,8.7806,2512.1,2511.5,4.25]
[1748182435963,8.7806,2512.1,2511.6,0.2688]
[1748182440171,8.7806,2512.1,2511.7,4.244]
[1748182443477,8.0,2512.1,2511.7,4.5128]
[1748182451781,8.0,2512.1,2511.7,4.244]
[1748182452980,2.616,2512.0,2511.7,4.244]
[1748182454376,2.616,2512.0,2511.5,0.2688]
[1748182454584,2.616,2512.0,2511.6,4.238]
[1748182454585,2.66576841,2512.0,2511.6,4.238]
[1748182456386,8.0,2511.9,2511.6,4.238]
[1748182456702,0.55,2511.7,2511.6,4.238]
[1748182457006,2.16667714,2511.7,2511.6,4.238]
[1748182457173,6.13967714,2511.7,2511.6,4.238]
[1748182457344,14.13967714,2511.7,2511.6,4.238]
[1748182457740,24.38967714,2511.7,2511.6,4.238]
[1748182458172,0.7567,2511.6,2511.4,8.581]
[1748182458482,1.3067,2511.6,2511.5,4.238]
[1748182459449,9.3067,2511.6,2511.5,4.238]
[1748182462488,19.5567,2511.6,2511.5,4.238]
[1748182465293,1.306,2511.5,2511.4,8.581]
[1748182465496,5.279,2511.5,2511.4,12.819]
[1748182465670,7.71789771,2511.5,2511.4,12.819]
[1748182467304,6.41189771,2511.5,2511.4,12.819]
[1748182467480,6.96189771,2511.5,2511.4,12.819]
[1748182468302,6.80413716,2511.5,2511.4,12.819]
[1748182469313,6.85391426,2511.5,2511.4,12.819]
[1748182469507,6.80413716,2511.5,2511.4,12.819]
[1748182470428,6.85391426,2511.5,2511.4,12.819]
[1748182470625,7.35413716,2511.5,2511.4,12.82]
[1748182470828,8.15413716,2511.5,2511.4,12.82]
[1748182474534,8.15413716,2511.5,2511.4,4.239]
[1748182475817,8.55,2511.4,2510.8,0.2688]
[1748182476018,0.55,2511.2,2510.9,4.239]
[1748182476337,0.55,2511.2,2511.0,4.239]
[1748182480173,10.8,2511.2,2511.0,4.239]
[1748182480672,14.224,2511.2,2511.0,4.239]
[1748182482488,16.4464,2511.2,2510.8,0.2688]
[1748182482768,16.4464,2511.2,2511.1,4.233]
[1748182486220,14.224,2511.2,2511.1,4.233]
[1748182487156,10.25,2511.2,2511.1,4.233]
[1748182491952,0.55,2511.3,2511.1,4.233]
[1748182492156,0.55,2511.0,2510.5,8.8518]
[1748182492449,0.55,2510.8,2510.5,8.583]
[1748182492659,8.59979399,2510.7,2510.6,4.233]
[1748182492863,10.5714594,2510.7,2510.6,4.233]
[1748182493859,20.8214594,2510.7,2510.6,4.233]
[1748182494165,0.55,2510.6,2510.5,8.583]
[1748182494350,18.84979628,2510.6,2510.5,12.816]
[1748182494667,22.16600557,2510.6,2510.5,12.816]
[1748182494841,21.61600557,2510.6,2510.5,12.816]
[1748182495326,25.59000557,2510.6,2510.5,12.816]
[1748182496168,26.14000557,2510.6,2510.5,8.583]
[1748182496328,26.14000557,2510.6,2510.5,12.816]
[1748182498967,26.95480557,2510.6,2510.5,8.583]
[1748182501279,22.98080557,2510.6,2510.5,8.583]
[1748182501436,10.25,2510.6,2510.5,8.8518]
[1748182502838,10.25,2510.6,2510.5,8.583]
[1748182503576,10.25,2510.6,2510.5,12.816]
[1748182503731,8.55,2510.7,2510.5,12.816]
[1748182503935,8.55,2510.7,2510.5,8.583]
[1748182503936,6.2525,2510.6,2510.5,8.583]
[1748182504175,6.2525,2510.6,2510.5,12.816]
[1748182504876,6.8025,2510.6,2510.5,8.583]
[1748182505085,6.8025,2510.6,2510.5,12.816]
[1748182505273,3.975,2510.6,2510.5,12.816]
[1748182505434,10.25,2510.8,2510.5,13.0848]
[1748182505635,3.975,2510.7,2510.5,13.0848]
[1748182509275,10.25,2510.8,2510.5,13.0848]
[1748182509577,0.55,2511.0,2510.5,13.0848]
[1748182509578,8.0,2510.9,2510.5,13.0848]
[1748182509778,3.975,2510.8,2510.5,13.0848]
[1748182510740,8.0,2510.9,2510.5,13.0848]
[1748182510971,11.975,2510.9,2510.5,13.0848]
[1748182511501,10.25,2511.0,2510.5,13.0848]
[1748182511703,3.975,2510.9,2510.5,13.0848]
[1748182512700,10.25,2511.0,2510.5,13.0848]
[1748182512892,3.975,2510.9,2510.5,13.0848]
[1748182513088,3.975,2510.9,2510.5,14.39328]
[1748182513864,10.25,2511.0,2510.5,14.39328]
[1748182514180,3.975,2510.9,2510.5,14.39328]
[1748182514767,3.974,2510.9,2510.5,5.81028]
[1748182514966,3.974,2510.9,2510.5,4.5018]
[1748182517791,14.224,2511.0,2510.5,4.5018]
[1748182523213,8.0,2510.9,2510.5,4.5018]
[1748182523580,8.0,2510.9,2510.6,0.2688]
[1748182526014,8.0,2510.9,2510.7,4.228]
[1748182527289,8.0,2511.2,2510.7,4.228]
[1748182527617,1.1974,2511.1,2510.7,4.228]
[1748182528305,0.04978527,2511.0,2510.7,4.228]
[1748182528607,1.1974,2511.1,2510.7,4.228]
[1748182529816,8.0,2511.2,2510.7,4.228]
[1748182529992,8.0,2511.3,2510.8,0.2688]
[1748182532372,0.04977993,2511.2,2510.8,0.2688]
[1748182533421,8.0,2511.3,2510.8,0.2688]
[1748182534623,0.0497842,2511.2,2510.9,4.228]
[1748182534801,1.91208842,2511.2,2510.9,4.228]
[1748182534996,1.91208842,2511.2,2510.8,0.2688]
[1748182535198,8.55,2511.0,2510.9,4.228]
[1748182535416,1.3148,2510.9,2510.8,4.228]
[1748182537427,1.3148,2510.9,2510.2,0.2688]
[1748182537657,1.3148,2510.9,2510.8,4.228]
[1748182537827,1.3148,2510.9,2510.7,4.228]
[1748182538534,8.0,2510.8,2510.7,4.228]
[1748182540431,18.25,2510.8,2510.7,4.228]
[1748182540746,10.25,2510.8,2510.7,4.4968]
[1748182540890,10.25,2510.8,2510.7,4.94648]
[1748182543240,10.25,2510.8,2510.7,0.71848]
[1748182543443,10.25,2510.8,2510.7,4.4928]
[1748182544949,8.0,2511.2,2510.7,4.4928]
[1748182549580,8.0,2511.3,2510.7,4.4928]
[1748182551172,8.0,2511.3,2510.7,0.2688]
[1748182551377,10.34165395,2511.3,2510.8,4.224]
[1748182553881,0.04978357,2511.2,2510.8,4.224]
[1748182554068,10.34165395,2511.3,2510.8,4.224]
[1748182554643,0.86478528,2511.2,2510.9,4.224]
[1748182554851,0.815,2511.2,2510.9,4.224]
[1748182555052,1.11566539,2511.1,2510.9,4.224]
[1748182556178,1.16544995,2511.1,2510.4,0.2688]
[1748182556365,9.66566539,2511.1,2511.0,4.224]
[1748182556747,19.91566539,2511.1,2511.0,4.224]
[1748182557391,0.55,2511.0,2510.4,0.2688]
[1748182557566,10.04656654,2510.9,2510.5,4.224]
[1748182557877,10.04656654,2510.9,2510.6,4.224]
[1748182558195,10.04656654,2510.9,2510.7,4.224]
[1748182558881,10.04656654,2510.9,2510.4,0.2688]
[1748182559077,10.59656654,2510.9,2510.8,4.224]
[1748182559379,2.04656654,2510.9,2510.4,0.2688]
[1748182559558,8.0,2511.0,2510.5,4.224]
[1748182561289,11.36566539,2511.1,2510.6,0.2688]
[1748182566693,0.7849,2511.0,2510.6,0.2688]
[1748182567071,0.83468773,2511.0,2510.6,0.2688]
[1748182567268,8.7849,2511.0,2510.3,8.585]
[1748182567581,2.56505654,2510.9,2510.4,4.224]
[1748182571402,2.56505654,2510.9,2510.5,4.221]
[1748182580706,2.56505654,2510.9,2510.6,4.221]
[1748182583015,8.0,2510.8,2510.6,4.221]
[1748182583180,0.8065,2510.5,2510.3,8.585]
[1748182583375,1.40629661,2510.4,2510.3,8.585]
[1748182583608,19.65629661,2510.4,2510.3,8.585]
[1748182583797,23.5805,2510.4,2510.3,12.806]
[1748182584112,25.93855,2510.4,2510.3,8.585]
[1748182584415,28.32355,2510.4,2510.3,8.585]
[1748182584716,25.93855,2510.4,2510.3,8.585]